Cogmind - Beta 14 @@@ ROGUE MODE // 2025.01.13 @ 21:02:57 Player: celerysam Result: Destroyed by JP-UNK(R) with Subdweller Machine Gun Performance ------------- Evolutions (0) 0 Regions Visited (2) 400 Robots Destroyed (10) 50 Value Destroyed (304) 304 Prototype IDs (11) 220 Alien Tech Used (0) 0 Bonus (0) 0 TOTAL SCORE: 974 Bonus ------- None Cogmind --------- Core Integrity 0/250 Matter 199/300 Energy 199/200 System Corruption 1% Temperature Cool (0) Movement Rolling (110) Location -10/Subcaves Parts ------- > --- POWER (1) -------- Subdweller Power Source > --- PROPULSION (2) --- Subdweller Monowheel > --- UTILITY (2) ------ Small Storage Unit Structural Scanner > --- WEAPON (2) ------- Light Cannon Light Cannon > --- INVENTORY (8) ---- Seismic Detector Scrap Shield Power Bank Battle Rifle Battle Cannon Grenade Launcher Datajack Peak State ------------ > --- POWER ------------ Light Nuclear Core > --- PROPULSION ------- Aluminum Leg Myomer Leg > --- UTILITY ---------- Small Storage Unit Structural Scanner > --- WEAPON ----------- Light Cannon Slug Cannon > --- INVENTORY -------- Structural Scanner Seismic Detector Scrap Shield Light Cannon Grenade Launcher Datajack [Rating: 18] Favorites ----------- Power Light Nuclear Core Engine Ion Engine Power Core Light Nuclear Core Propulsion Aluminum Leg Leg Aluminum Leg Wheel Subdweller Monowheel Utility Small Storage Unit Device Structural Scanner Storage Small Storage Unit Weapon Light Cannon Energy Gun Medium Laser Ballistic Gun Light Assault Rifle Ballistic Cannon Light Cannon Launcher Grenade Launcher Special Melee Weapon Datajack Build | -11 -10 -10 ------- Run | Yrd Mat Sub Slots Evolved . | . . . Power . | . . . Propulsion . | . . . Utility . | . . . Weapon . | . . . Parts Attached 29 | 6 10 13 Power 5 | 1 3 1 Engine 4 | 1 2 1 Core 1 | . 1 . Reactor . | . . . Propulsion 9 | 2 2 5 Treads . | . . . Leg 4 | . 2 2 Wheel 5 | 2 . 3 Hover . | . . . Flight . | . . . Utility 4 | 1 1 2 Device 3 | . 1 2 Storage 1 | 1 . . Processor . | . . . Hackware . | . . . Protection . | . . . Artifact . | . . . Weapon 11 | 2 4 5 Energy Gun 1 | 1 . . Energy Cannon . | . . . Ballistic Gun 2 | 1 1 . Ballistic Cannon 6 | . 2 4 Launcher 1 | . 1 . Special Weapon . | . . . Impact Weapon . | . . . Slashing Weapon . | . . . Piercing Weapon . | . . . Special Melee Weapon 1 | . . 1 Unidentified Prototypes . | . . . Parts Lost 7 | . 2 5 Power 2 | . 1 1 Propulsion 3 | . 1 2 Utility 1 | . . 1 Weapon 1 | . . 1 Highest Loss Streak 5 | . 1 5 To Critical Strikes 1 | . . 1 Average Slot Usage (%) 89 | . 98 86 Engine 2 | . 7 1 Core 8 | . 6 9 Leg 13 | . 18 11 Wheel 8 | . 8 9 Device 11 | . 13 11 Storage 14 | . 14 14 Energy Gun 3 | . 12 . Ballistic Gun 3 | . 12 . Ballistic Cannon 21 | . 2 27 Peak Build Rating 18 | 6 9 18 Average Rating 9 | 3 7 10 On Entrance 5 | . 6 9 Naked Turns . | . . . Heaviest Build 21 | 13 17 21 Greatest Support 40 | 26 26 40 Greatest Overweight (x) 3 | . . 3 Average Overweight (x) . | . . . Largest Inventory Capacity 8 | 8 8 8 Average Capacity 7 | 6 8 8 Most Carried 8 | 6 8 8 Average Carried 7 | 4 7 7 Final Capacity 8 | 8 8 8 Final Carried 8 | 6 8 8 Class Distribution -------------------- 100% | Mutant Dominant Class ---------------- Mutant | -10/Materials Mutant | -10/Subcaves Resources | -11 -10 -10 ----------- Run | Yrd Mat Sub Matter Collected 966 | 231 100 635 Remotely . | . . . Salvage Created 267 | . 167 100 Parts 17 | . 11 6 Haulers Intercepted . | . . . Recyclers Shooed . | . . . Parts Field Recycled . | . . . Retrieved Matter . | . . . Parts Self-Destructed 7 | . . 7 Prevented . | . . . Kills | -11 -10 -10 ------- Run | Yrd Mat Sub Combat Hostiles Destroyed 9 | . 5 4 Guns 5 | . 5 . Cannons 4 | . . 4 Classes Destroyed 4 | . 3 1 Watcher 1 | . 1 . Swarmer 3 | . 3 . Grunt 3 | . 2 1 Subdweller 3 | . . 3 Best Kill Streak 3 | . 3 2 Combat Bots Only 3 | . 3 2 Max Kills in Single Turn 1 | . 1 1 Gunslinging . | . . . Exploded . | . . . Melee . | . . . Uniques/NPCs Destroyed . | . . . Combat | -11 -10 -10 -------- Run | Yrd Mat Sub Hostile Shots Fired 94 | . 54 40 Missed 21 | . 10 11 Damage Taken 1147 | . 482 665 Core 265 | . 103 162 Absorbed by Shields . | . . . Core Remaining (%) 100 | 100 . . Volleys Fired 94 | . 35 59 Largest 2 | . 2 2 Hottest 83 | . 70 83 Shots Fired 184 | . 69 115 Gun 58 | . 58 . Cannon 125 | . 10 115 Launcher 1 | . 1 . Special . | . . . Kinetic 154 | . 39 115 Thermal 29 | . 29 . Explosive 1 | . 1 . Electromagnetic . | . . . Robot Hit Streak 5 | . 3 5 Robot Miss Streak 4 | . 3 4 Penetration Max . | . . . Secondary Targets . | . . . Shots Hit Robots 62 | . 28 34 Core Hits 22 | . 12 10 Critical Kills . | . . . Critical Parts Destroyed . | . . . Critical Strikes 2 | . 1 1 Burn 1 | . 1 . Blast 1 | . . 1 Melee Attacks . | . . . Impact . | . . . Slashing . | . . . Piercing . | . . . Sneak Attacks . | . . . Combat Hostiles . | . . . Follow-up Attacks . | . . . Damage Inflicted 877 | . 311 566 Guns 306 | . 306 . Cannons 566 | . . 566 Explosions . | . . . Melee . | . . . Ramming 5 | . 5 . Kinetic 734 | . 168 566 Thermal 138 | . 138 . Explosive . | . . . Electromagnetic . | . . . Impact . | . . . Slashing . | . . . Piercing . | . . . Highest Corruption 1 | . 1 1 Average Corruption 1 | . 1 1 Corruption Purged . | . . . Corruption Blocked . | . . . Effects 10 | . . 10 Message Errors 5 | . . 5 Matter Fused 1 | . . 1 Heat Flow Errors 2 | . . 2 Energy Discharges 1 | . . 1 Data Loss (major) 1 | . . 1 Overload Shots . | . . . Overflow Damage . | . . . Projectiles . | . . . Explosions . | . . . Melee . | . . . Knockbacks 9 | . . 9 Impact . | . . . Kinetic 9 | . . 9 Secondary . | . . . Self-Inflicted Damage 2 | . 2 . Shots . | . . . Rammed 1 | . 1 . Targets Rammed 1 | . 1 . Kicked . | . . . Crushed . | . . . Highest Temperature 326 | . 326 133 Average Temperature 103 | . 106 67 Received Heat Transfer 267 | . 180 87 Siege Activations . | . . . Robots Corrupted . | . . . Combat Hostiles . | . . . Parts Fried . | . . . Impact Corruptions . | . . . Robots Melted . | . . . Combat Hostiles . | . . . Parts Melted . | . . . Heat Transferred 481 | . 481 . Parts Sabotaged . | . . . Parts Stolen . | . . . Parts Stripped . | . . . Power Chain Reactions . | . . . Alert | -11 -10 -10 ------- Run | Yrd Mat Sub Peak Influence 167 | . 167 . Initial . | . . . Average 83 | . 96 . Maximum Alert Level . | . . . Low Security (%) 100 | 100 100 . Level 1 . | . . . Level 2 . | . . . Level 3 . | . . . Level 4 . | . . . Level 5 . | . . . High Security . | . . . Max Security . | . . . Squads Dispatched 1 | . 1 . Investigation 1 | . 1 . Extermination . | . . . Reinforcement . | . . . Assault . | . . . Garrison . | . . . Intercept . | . . . Searches Triggered . | . . . Construction Impeded . | . . . Haulers Reinforced . | . . . Active Scanning Responses . | . . . Cargo Convoy Interrupts . | . . . Stealth | -11 -10 -10 --------- Run | Yrd Mat Sub Distress Signals . | . . . Communications Jammed . | . . . Distress Signals . | . . . Times Spotted 19 | . 8 11 Peak Tracking Total 3 | . 3 2 Tactical Retreats 2 | . 1 1 Traps | -11 -10 -10 ------- Run | Yrd Mat Sub Traps Triggered 2 | . 2 . Indirectly . | . . . Trap Hack Attempts . | . . . Triggered . | . . . Disarmed . | . . . Reprogrammed . | . . . Reused . | . . . Traps Extracted . | . . . Installed . | . . . Triggered . | . . . Machines | -11 -10 -10 ---------- Run | Yrd Mat Sub Machines Disabled 2 | . 1 1 Max in Single Turn 1 | . 1 1 Machines Repaired . | . . . Machines Dismantled . | . . . Machines Sabotaged . | . . . Overloaded Fab Kills . | . . . Hacking | -11 -10 -10 --------- Run | Yrd Mat Sub Machines Accessed 4 | . 2 2 Terminals 1 | . 1 . Fabricators . | . . . Repair Stations . | . . . Recycling Units 1 | . 1 . Scanalyzers . | . . . Garrison Access . | . . . Total Hacks 18 | . 4 14 Successful 16 | . 2 14 Failed 2 | . 2 . Catastrophic . | . . . Database Lockouts . | . . . Manual 3 | . 1 2 Terminals 2 | . 2 . Fabricators . | . . . Repair Stations . | . . . Recycling Units 2 | . 2 . Scanalyzers . | . . . Garrison Access . | . . . Terminal Hacks 14 | . . 14 Record 13 | . . 13 Derelict Proto ID Bank 1 | . . 1 Fabricator Hacks . | . . . Repair Station Hacks . | . . . Recycling Unit Hacks 2 | . 2 . Report Inventory 1 | . 1 . Retrieve Components 1 | . 1 . Scanalyzer . | . . . Garrison Access Hacks . | . . . Unauthorized Hacks . | . . . Terminals . | . . . Fabricators . | . . . Repair Stations . | . . . Recycling Units . | . . . Scanalyzers . | . . . Garrison Access . | . . . Data Cores Recovered . | . . . Used . | . . . Hacking Detections 1 | . 1 . Full Trace Events . | . . . Feedback Events . | . . . Feedback Blocked . | . . . Robot Schematics Acquired . | . . . Robots Built . | . . . Authchips . | . . . Time . | . . . Total Robot Build Rating . | . . . Part Schematics Acquired . | . . . Parts Built . | . . . Authchips . | . . . Time . | . . . Total Part Build Rating . | . . . Parts Repaired . | . . . Time . | . . . Parts Recycled . | . . . Recycled Matter . | . . . Retrieved Matter . | . . . Retrieved Components 6 | . 6 . Parts Scanalyzed . | . . . Part Schematics Acquired . | . . . Parts Damaged . | . . . Bothacking | -11 -10 -10 ------------ Run | Yrd Mat Sub Used RIF Installer . | . . . Robots Hacked . | . . . Non-combat . | . . . Combat . | . . . Robot Hacks Applied . | . . . Relay Couplers Released . | . . . Fabnet Peak Effective % . | . . . Robots Rewired . | . . . Allies Hacked . | . . . Hacks Repelled . | . . . Allies | -11 -10 -10 -------- Run | Yrd Mat Sub Total Allies . | . . . Largest Group . | . . . Highest-Rated Group . | . . . Highest-Rated Ally . | . . . Total Orders . | . . . Ally Attacks . | . . . Total Damage . | . . . Kills . | . . . Allies Corrupted . | . . . Allies Melted . | . . . Intel | -11 -10 -10 ------- Run | Yrd Mat Sub Robot Analysis Total . | . . . Derelict Logs Recovered 1 | . . 1 Drone Launches . | . . . Drone Recoveries . | . . . Exploration | -11 -10 -10 ------------- Run | Yrd Mat Sub Turns Passed 2000 | 75 463 1462 Spaces Moved 1305 | 67 298 940 Core 144 | 6 . 138 Treads . | . . . Legs 652 | . 225 427 Wheels 509 | 61 73 375 Hover . | . . . Flight . | . . . Fastest Speed 50 | 50 90 110 Average Speed 122 | 86 112 128 Slowest Speed 200 | 90 120 200 Overloaded Moves . | . . . Propulsion Burnouts . | . . . Robots Hopped . | . . . Cave-ins Triggered . | . . . Exploration Rate (%) 40 | 3 54 63 Regions Visited 2 Branch Regions 1 Pre-discovered Areas . | . . . Known Exits Taken . | . . . Unknown Exits Taken 2 | 1 1 . Scrap Searched 7 | . . 7 Spaces Dug . | . . . Terrain Destroyed 18 | . 7 11 Melee . | . . . Projectile 11 | . . 11 AOE 7 | . 7 . Terrain Rammed . | . . . Walls Destroyed . | . . . Machines Disabled . | . . . Actions | -11 -10 -10 --------- Run | Yrd Mat Sub Total 1527 | 83 361 1083 Wait 59 | . 6 53 Move 1303 | 66 297 940 Hop . | . . . Pick Up 28 | 11 7 10 Fast Attach 3 | 1 1 1 Attach 12 | 5 2 5 Detach . | . . . Swap 14 | . 7 7 Drop 13 | . 5 8 Fire 94 | . 35 59 Melee . | . . . Ram 1 | . 1 . Kick . | . . . Crush . | . . . Escape Stasis . | . . . Rewire . | . . . Trap . | . . . Miscellaneous . | . . . Route ------- -11/Scrapyard -10/Materials (discovered 2 exits: [*Min] / *Sub) -10/Subcaves (discovered 3 exits: [*Mat x2] / Rec) History --------- Turn | Location | Event 15 | -11/Scrapyard | Discovered new exit (range 15) 76 | -11/Scrapyard | Entered Materials 302 | -10/Materials | Build established: Mutant 446 | -10/Materials | Discovered new exit (range 15) 480 | -10/Materials | Discovered new exit (range 6) 539 | -10/Materials | Entered Subcaves 579 | -10/Subcaves | Shifting Twisted Machinery released Sub. Monowheel 588 | -10/Subcaves | Discovered new exit (range 8) 598 | -10/Subcaves | Shifting Twisted Machinery released Sub. Laser 946 | -10/Subcaves | Shifting Twisted Machinery released Sub. Power Source 954 | -10/Subcaves | Shifting Twisted Machinery released Sub. Monowheel 1004 | -10/Subcaves | Core integrity fell below 50% 1010 | -10/Subcaves | Disturbed a concealed Subdweller 1551 | -10/Subcaves | Core integrity fell below 20% 1575 | -10/Subcaves | Discovered new exit (range 9) 1592 | -10/Subcaves | Lost 5 parts (1p2n1u1w) 1688 | -10/Subcaves | Visited Clippyterm 1694 | -10/Subcaves | Identified exit to Recycling 1863 | -10/Subcaves | Visited 4L-MR0's lab 1901 | -10/Subcaves | Found Power Bank 2001 | -10/Subcaves | Destroyed by JP-UNK(R) with Subdweller Machine Gun Last Messages --------------- way I'm not culpable for whatever they would've done with it. If we're lucky even some of the others got blasted, too. 01869_ Connecting with 4L-MR0's Prototype Logs... 01873_ 4L-MR0 mumbles to no one in particular: "Damn Subs sneaking around stealing my stuff." 01889_ 4L-MR0 mumbles: "I'm surprised some of them are even willing to come in here given their fear of my usual visitors." 01896_ Testing Chamber breached. 01901_ Acquired Power Bank. 01904_ 4L-MR0 mumbles: "Who knows where that last prototype ended up, probably tossed aside somewhere as if it were useless junk..." 01969_ Searching scrap... 01969_ Found Battle Rifle. 01969_ Found Sub. Shrapnel Launcher. 01969_ Found 62 Matter. 01970_ Acquired 62 matter. Map ----- +----------------------------------------------------+ | ?????????????????????????????????????????????????? | | ?????????????????????????????????????????????????? | | ?????????????????????????????????????????????????? | | ?????????????????????????????????????????????????? | | ?????????????????????????????????????????????????? | | ???????????????????????????????????????????????? # | | ??????????????????????????????????????????????? # | | ??????????????????????????????????????????????? ## | | ###############????????????????????????????????## | | ###############????????????????????????????????## | | ##" """"""# ##????????????????????????????????## | | ##" "X" " ##????????????????????????????????### | | #### #####???????????????????????????????### | | + #####????????????????????????????????## | | "###########"##?????????????????????????????????? | | " ########### ##?????????????????????????????????? | | " "##### "]"##?????????????????????????????????? | | " * # ["##########??????????????????????????? | | #"^ ##""##########??????????????????????????? | | ## "## ###### ##??????????????????????????? | | ######" "##### ##??#####???????????????????? | | ### " ### ## #########???????????????????? | | ######### ## ??????????????????? | | ########## ### ###??????????????????? | | ### ## # ##??????????????????? | | ## #@ ##??????????????????? | | ### ### ##$ R ????????????? | | #### ########### ######## # ????????? | | ???####?###################### ####### ?????????? | | ???????????????#######??????############?????????? | | ?????????????????????????????????????????????????? | | ?????????????????????????????????????????????????? | | ?????????????????????????????????????????????????? | | ?????????????????????????????????????????????????? | | ?????????????????????????????????????????????????? | | ?????????????????????????????????????????????????? | | ?????????????????????????????????????????????????? | | ?????????????????????????????????????????????????? | | ?????????????????????????????????????????????????? | | ?????????????????????????????????????????????????? | | ?????????????????????????????????????????????????? | | ?????????????????????????????????????????????????? | | ?????????????????????????????????????????????????? | | ?????????????????????????????????????????????????? | | | | | | | | | | | | | +----------------------------------------------------+ Best States ------------- Heat Dissipation 25 Energy Generation 15 Energy Capacity 250 Matter Stores 300 Matter Capacity 300 Sight Range 16 Terrain Scan Density 10 Evasion (%) 55 Item Schematics ----------------- None Robot Schematics ------------------ None Fabricated ------------ Nothing Alien Tech Used ----------------- None Achievements -------------- None Challenges ------------ None Game ------ Seed SignalSalvagingMantle Manual? 0 Play Time 00:27:02 Cumulative 190.1 hours Start 2025.01.13 @ 20:29:15 End 2025.01.13 @ 21:02:57 Sessions 1 Manual Loads 0 Difficulty Rogue Special Mode None Game No. 261 Rogue 261 Adventurer 0 Explorer 0 Win Type - Total 1 Types 1/0/0/0/0/0/0/0/0 Lore% 33 Gallery% 62 Achievement% 42 Wizard Run 0 Options --------- Layout 1 ASCII 0 Keyboard 0 Movement Mouse Keybinds 0 Fullscreen 1 Font 24/Smallcaps Map View 50x35 Zoom Use 0% Tactical HUD 1 Map Filters NONE Filters NONE Steam 1 RUN: b97b43a4-293f-45bd-8542-23096ed2904c